[Event "GER-ch Youth U10 2020"]
[Site "Willingen"]
[Date "2020.10.28"]
[Round "2.20"]
[White "Peglau, Paul David"]
[Black "Herrmann, Arthur"]
[Result "1-0"]
[ECO "E40"]
[WhiteElo "1322"]
[BlackElo "1151"]
[Annotator "NA RC"]
[PlyCount "107"]
[EventDate "2020.10.27"]
[EventType "swiss"]
[EventRounds "7"]
[EventCountry "GER"]
[SourceTitle "playchess.com"]
[Source "ChessBase"]
[SourceQuality "1"]
[TimeControl "40/4500+30:900+30"]

1. d4 {[%emt 0:00:00]} Nf6 {[%emt 0:00:00]} 2. c4 {[%emt 0:00:00]} e6 {[%emt 0:00:00]} 3. Nc3 {[%emt 0:00:01]} Bb4 {[%emt 0:00:00]} 4. e3 {[%emt 0:00:06]} d5 {[%emt 0:00:25]} 5. Bd3 {[%emt 0:01:03]} dxc4 {[%emt 0:00:20]} 6. Bxc4 {[%emt 0:00:09]} O-O {[%emt 0:00:32]} 7. Nge2 {[%emt 0:00:18]} b6 {[%emt 0:01:42]} 8. O-O {[%emt 0:00:20]} Bb7 {[%emt 0:00:31]} 9. Bd2 {[%emt 0:04:14]} c5 {[%emt 0:04:50]} 10. a3 {[%emt 0:02:42]} Bxc3 {[%emt 0:04:10]} 11. Bxc3 {[%emt 0:00:48]} Qe7 {[%emt 0:02:53]} 12. Rc1 {[%emt 0:04:03]} Rd8 {[%emt 0:02:06]} 13. Qc2 {[%emt 0:02:26]} Nbd7 {[%emt 0:04:27]} 14. Rfd1 {[%emt 0:00:32]} Rac8 {[%emt 0:00:46]} 15. b4 {[%emt 0:04:22]} h6 {[%emt 0:07:37]} 16. h3 {[%emt 0:05:21]} Ne4 {[%emt 0:04:05]} 17. Be1 {[%emt 0:04:02]} Nd6 {[%emt 0:03:08]} 18. dxc5 {[%emt 0:04:35]} bxc5 {[%emt 0:05:07]} 19. b5 {[%emt 0:03:10]} Qg5 {[%emt 0:02:41]} 20. Nf4 {[%emt 0:04:21]} Nf6 {[%emt 0:02:27]} 21. g3 {[%emt 0:06:16]} Nd5 {[%emt 0:02:54]} 22. Qb3 {[%emt 0:02:51]} Nxc4 {[%emt 0:01:34]} 23. Qxc4 {[%emt 0:02:48]} h5 {[%emt 0:05:18]} 24. Nxd5 {[%emt 0:03:19]} exd5 {[%emt 0:00:39]} 25. Qf4 {[%emt 0:00:43]} Qxf4 {[%emt 0:00:59]} 26. gxf4 {[%emt 0:00:17]} f6 {[%emt 0:02:20]} 27. Kf1 {[%emt 0:00:52]} Kf7 {[%emt 0:00:57]} 28. Ke2 {[%emt 0:00:55]} Ke6 {[%emt 0:00:30]} 29. Rc2 {[%emt 0:00:57]} Rd7 {[%emt 0:03:27]} 30. Rdc1 {[%emt 0:00:59]} Kd6 {[%emt 0:00:53]} 31. a4 {[%emt 0:01:03]} Re7 {[%emt 0:01:48]} 32. Rxc5 {[%emt 0:03:38]} Rec7 {[%emt 0:05:29]} 33. Rxc7 {[%emt 0:02:30]} Rxc7 {[%emt 0:00:09]} 34. Bb4+ {[%emt 0:00:07]} Kd7 {[%emt 0:00:16]} 35. Rxc7+ {[%emt 0:00:16]} Kxc7 {[%emt 0:00:12]} 36. Kd3 {[%emt 0:00:08]} Kd7 {[%emt 0:05:27]} 37. Bc5 {[%emt 0:00:23]} g5 {[%emt 0:01:30]} 38. fxg5 {[%emt 0:00:24]} fxg5 {[%emt 0:00:07]} 39. Bxa7 {[%emt 0:00:16]} d4 {[%emt 0:06:08]} 40. e4 {[%emt 0:00:21]} Kc7 {[%emt 0:01:14]} 41. Bxd4 {[%emt 0:15:13]} Bc8 {[%emt 0:15:46]} 42. Bf6 {[%emt 0:00:13]} g4 {[%emt 0:02:04]} 43. hxg4 {[%emt 0:00:59]} Bxg4 {[%emt 0:00:32]} 44. f4 {[%emt 0:00:31]} Bc8 {[%emt 0:00:18]} 45. e5 {[%emt 0:00:36]} Be6 {[%emt 0:01:16]} 46. a5 {[%emt 0:00:15]} Bd7 {[%emt 0:01:43]} 47. Kc4 {[%emt 0:00:18]} Bg4 {[%emt 0:00:31]} 48. Kc5 {[%emt 0:00:10]} Be6 {[%emt 0:00:30]} 49. a6 {[%emt 0:00:19]} h4 {[%emt 0:00:32]} 50. Bxh4 {[%emt 0:00:07]} Bc8 {[%emt 0:00:22]} 51. b6+ {[%emt 0:00:08]} Kb8 {[%emt 0:00:08]} 52. b7 {[%emt 0:00:18]} Bf5 {[%emt 0:00:25]} 53. Kb6 {[%emt 0:00:06]} Bc8 {[%emt 0:00:30]} 54. a7# 1-0

[Event "GER-ch Youth U10 2020"]
[Site "Willingen"]
[Date "2020.10.28"]
[Round "2.21"]
[White "Wolff, Calvin"]
[Black "Theviot, Luca"]
[Result "1-0"]
[ECO "B00"]
[WhiteElo "1219"]
[BlackElo "1423"]
[Annotator "NA RC"]
[PlyCount "81"]
[EventDate "2020.10.27"]
[EventType "swiss"]
[EventRounds "7"]
[EventCountry "GER"]
[SourceTitle "playchess.com"]
[Source "ChessBase"]
[SourceQuality "1"]
[TimeControl "40/4500+30:900+30"]

1. e4 {[%emt 0:00:05]} d6 {[%emt 0:00:00]} 2. Nf3 {[%emt 0:00:30]} Nf6 {[%emt 0:00:00]} 3. Nc3 {[%emt 0:00:47]} e5 {[%emt 0:00:15]} 4. Bc4 {[%emt 0:00:52]} Be7 {[%emt 0:00:13]} 5. d3 {[%emt 0:00:45]} O-O {[%emt 0:00:08]} 6. Bd2 {[%emt 0:00:31]} Nbd7 {[%emt 0:00:51]} 7. a3 {[%emt 0:00:21]} c6 {[%emt 0:00:09]} 8. Ba2 {[%emt 0:00:57]} Qc7 {[%emt 0:00:23]} 9. Nh4 {[%emt 0:01:11]} Nxe4 {[%emt 0:00:43]} 10. Nf5 {[%emt 0:00:27]} Nxc3 {[%emt 0:02:56]} 11. Nxe7+ {[%emt 0:00:38]} Kh8 {[%emt 0:00:07]} 12. Bxc3 {[%emt 0:00:41]} Nf6 {[%emt 0:00:41]} 13. Nxc8 {[%emt 0:00:14]} Qxc8 {[%emt 0:00:21]} 14. Qd2 {[%emt 0:00:33]} d5 {[%emt 0:00:15]} 15. b4 {[%emt 0:02:46]} Qg4 {[%emt 0:00:24]} 16. O-O {[%emt 0:00:37]} Rfe8 {[%emt 0:00:36]} 17. Qd1 {[%emt 0:00:40]} Qg5 {[%emt 0:00:07]} 18. Bd2 {[%emt 0:00:22]} Qh4 {[%emt 0:00:10]} 19. Qf3 {[%emt 0:00:31]} Re6 {[%emt 0:00:26]} 20. Qg3 {[%emt 0:00:48]} Qh5 {[%emt 0:00:19]} 21. Qg5 {[%emt 0:00:16]} Qxg5 {[%emt 0:00:48]} 22. Bxg5 {[%emt 0:00:08]} h6 23. Bxf6 Rxf6 {[%emt 0:01:21]} 24. c4 {[%emt 0:00:55]} d4 {[%emt 0:00:14]} 25. c5 {[%emt 0:00:20]} a5 {[%emt 0:00:08]} 26. Bc4 {[%emt 0:00:16]} Ra7 {[%emt 0:00:24]} 27. f3 {[%emt 0:00:23]} Kh7 {[%emt 0:00:08]} 28. Kf2 {[%emt 0:00:33]} Kg6 {[%emt 0:00:18]} 29. g3 {[%emt 0:00:12]} axb4 {[%emt 0:00:16]} 30. axb4 {[%emt 0:00:10]} Rxa1 {[%emt 0:00:24]} 31. Rxa1 {[%emt 0:00:07]} Kh7 {[%emt 0:00:32]} 32. Ra7 {[%emt 0:00:12]} Kg6 {[%emt 0:00:21]} 33. Rxb7 {[%emt 0:00:07]} Kh7 {[%emt 0:00:18]} 34. b5 {[%emt 0:00:20]} cxb5 {[%emt 0:00:17]} 35. Bxb5 {[%emt 0:00:14]} e4 {[%emt 0:00:05]} 36. dxe4 {[%emt 0:00:11]} d3 {[%emt 0:00:54]} 37. Bxd3 {[%emt 0:00:07]} Rc6 {[%emt 0:00:13]} 38. Rb5 {[%emt 0:00:03]} Ra6 {[%emt 0:00:21]} 39. Ke3 {[%emt 0:00:17]} Ra3 {[%emt 0:00:33]} 40. Rb4 {[%emt 0:00:10]} Rc3 {[%emt 0:00:12]} 41. Rc4 1-0

[Event "GER-ch Youth U10 2020"]
[Site "Willingen"]
[Date "2020.10.28"]
[Round "2.22"]
[White "Mohammadzadeh, Daris"]
[Black "Huang, Luca Hanson"]
[Result "1/2-1/2"]
[ECO "B43"]
[WhiteElo "1311"]
[BlackElo "1570"]
[Annotator "NA RC"]
[PlyCount "119"]
[EventDate "2020.10.27"]
[EventType "swiss"]
[EventRounds "7"]
[EventCountry "GER"]
[SourceTitle "playchess.com"]
[Source "ChessBase"]
[SourceQuality "1"]
[TimeControl "40/4500+30:900+30"]

1. e4 {[%emt 0:00:00]} c5 {[%emt 0:00:00]} 2. Nf3 {[%emt 0:00:00]} e6 {[%emt 0:00:00]} 3. d4 {[%emt 0:00:00]} cxd4 {[%emt 0:00:03]} 4. Nxd4 {[%emt 0:00:07]} a6 {[%emt 0:00:08]} 5. Nc3 {[%emt 0:02:08]} Qc7 {[%emt 0:00:19]} 6. Bd3 {[%emt 0:01:40]} Nf6 {[%emt 0:00:59]} 7. Bg5 {[%emt 0:01:10]} Be7 {[%emt 0:02:10]} 8. O-O {[%emt 0:04:50]} O-O {[%emt 0:05:04]} 9. Nb3 {[%emt 0:04:47]} Nc6 {[%emt 0:02:21]} 10. f4 {[%emt 0:02:40]} e5 {[%emt 0:06:53]} 11. Nd5 {[%emt 0:07:25]} Nxd5 {[%emt 0:00:48]} 12. exd5 {[%emt 0:00:48]} Bxg5 {[%emt 0:00:34]} 13. fxg5 {[%emt 0:01:56]} Nb4 {[%emt 0:00:33]} 14. Be4 {[%emt 0:03:59]} d6 {[%emt 0:02:01]} 15. c3 {[%emt 0:01:44]} Qc4 {[%emt 0:01:08]} 16. Nd2 {[%emt 0:02:15]} Qc5+ {[%emt 0:00:54]} 17. Rf2 {[%emt 0:03:20]} Nxd5 {[%emt 0:00:38]} 18. Nb3 {[%emt 0:00:35]} Ne3 {[%emt 0:01:00]} 19. Nxc5 {[%emt 0:03:56]} Nxd1 {[%emt 0:00:09]} 20. Rxd1 {[%emt 0:00:22]} dxc5 {[%emt 0:00:52]} 21. Rd5 {[%emt 0:00:24]} Rb8 {[%emt 0:02:37]} 22. Rxc5 {[%emt 0:01:05]} Be6 {[%emt 0:00:49]} 23. a3 {[%emt 0:01:08]} g6 {[%emt 0:03:43]} 24. Rxe5 {[%emt 0:03:05]} b6 {[%emt 0:00:09]} 25. Bd5 {[%emt 0:00:33]} Rbd8 26. Bxe6 {[%emt 0:01:03]} Rd1+ {[%emt 0:00:53]} 27. Rf1 {[%emt 0:00:15]} Rxf1+ {[%emt 0:00:09]} 28. Kxf1 {[%emt 0:00:06]} fxe6+ {[%emt 0:00:09]} 29. Kg1 {[%emt 0:00:59]} Kf7 {[%emt 0:00:34]} 30. b4 {[%emt 0:00:56]} Rd8 {[%emt 0:00:22]} 31. Re3 {[%emt 0:00:56]} Rd1+ {[%emt 0:00:43]} 32. Kf2 {[%emt 0:00:16]} Rc1 {[%emt 0:04:55]} 33. Kg3 {[%emt 0:02:20]} b5 {[%emt 0:03:39]} 34. Kf4 {[%emt 0:05:06]} Rc2 {[%emt 0:02:00]} 35. Kf3 {[%emt 0:01:13]} Ra2 {[%emt 0:00:14]} 36. h4 {[%emt 0:00:39]} Rxa3 {[%emt 0:00:55]} 37. Ke4 {[%emt 0:00:32]} Ke7 {[%emt 0:00:42]} 38. Kd4 {[%emt 0:01:28]} Kd6 {[%emt 0:00:35]} 39. g4 {[%emt 0:00:34]} Ra4 {[%emt 0:00:59]} 40. Re5 {[%emt 0:01:29]} Ra1 {[%emt 0:01:28]} 41. Re3 {[%emt 0:18:39]} Rd1+ {[%emt 0:15:27]} 42. Ke4 {[%emt 0:00:20]} Rd5 {[%emt 0:01:04]} 43. Rd3 {[%emt 0:01:47]} Rxd3 {[%emt 0:00:22]} 44. Kxd3 {[%emt 0:00:07]} Kd5 {[%emt 0:00:02]} 45. h5 {[%emt 0:01:00]} e5 {[%emt 0:00:46]} 46. Ke3 {[%emt 0:02:20]} e4 {[%emt 0:00:32]} 47. Kf4 {[%emt 0:00:32]} Kc4 {[%emt 0:00:36]} 48. Kxe4 {[%emt 0:00:08]} Kxc3 {[%emt 0:00:06]} 49. hxg6 {[%emt 0:00:08]} hxg6 {[%emt 0:00:08]} 50. Ke5 {[%emt 0:00:05]} Kxb4 {[%emt 0:00:15]} 51. Kf6 {[%emt 0:00:10]} Kc5 {[%emt 0:00:37]} 52. Kxg6 {[%emt 0:00:09]} b4 {[%emt 0:00:06]} 53. Kf7 {[%emt 0:00:37]} b3 {[%emt 0:00:07]} 54. g6 {[%emt 0:00:18]} b2 {[%emt 0:00:49]} 55. g7 {[%emt 0:00:07]} b1=Q 56. g8=Q Qb3+ 57. Kg7 {[%emt 0:01:42]} Qxg8+ {[%emt 0:01:08]} 58. Kxg8 {[%emt 0:00:07]} a5 {[%emt 0:00:04]} 59. g5 {[%emt 0:00:09]} a4 {[%emt 0:00:05]} 60. g6 {[%emt 0:00:07]} 1/2-1/2

[Event "GER-ch Youth U10 2020"]
[Site "Willingen"]
[Date "2020.10.28"]
[Round "2.23"]
[White "Conrad, Marius"]
[Black "Ahlers, Quentin"]
[Result "0-1"]
[ECO "C55"]
[WhiteElo "1645"]
[BlackElo "1425"]
[Annotator "NA RC"]
[PlyCount "100"]
[EventDate "2020.10.27"]
[EventType "swiss"]
[EventRounds "7"]
[EventCountry "GER"]
[SourceTitle "playchess.com"]
[Source "ChessBase"]
[SourceQuality "1"]
[TimeControl "40/4500+30:900+30"]

1. e4 {[%emt 0:00:00]} e5 {[%emt 0:00:00]} 2. Nf3 {[%emt 0:00:00]} Nc6 {[%emt 0:00:00]} 3. Bc4 {[%emt 0:00:00]} Nf6 {[%emt 0:00:11]} 4. d3 {[%emt 0:00:00]} h6 {[%emt 0:00:34]} 5. c3 {[%emt 0:00:18]} Bc5 {[%emt 0:00:20]} 6. a4 {[%emt 0:00:15]} a5 {[%emt 0:00:19]} 7. Na3 {[%emt 0:00:44]} O-O {[%emt 0:00:35]} 8. d4 {[%emt 0:01:09]} exd4 {[%emt 0:00:17]} 9. cxd4 {[%emt 0:00:10]} Bb4+ {[%emt 0:00:14]} 10. Bd2 {[%emt 0:00:39]} Bxd2+ {[%emt 0:00:09]} 11. Qxd2 {[%emt 0:01:43]} Nxe4 {[%emt 0:01:39]} 12. Qd1 {[%emt 0:03:25]} d5 {[%emt 0:01:44]} 13. Bd3 {[%emt 0:01:44]} Re8 {[%emt 0:02:43]} 14. O-O {[%emt 0:01:26]} Bg4 {[%emt 0:02:09]} 15. Nc2 {[%emt 0:02:41]} Qf6 {[%emt 0:02:24]} 16. Be2 {[%emt 0:02:53]} Bxf3 {[%emt 0:03:56]} 17. Bxf3 {[%emt 0:00:55]} Rad8 {[%emt 0:01:25]} 18. Ra3 {[%emt 0:03:13]} Ng5 {[%emt 0:01:30]} 19. Bg4 {[%emt 0:05:51]} Re4 {[%emt 0:04:28]} 20. Rd3 {[%emt 0:01:35]} Rde8 {[%emt 0:01:36]} 21. Bd7 {[%emt 0:07:58]} Rd8 {[%emt 0:02:19]} 22. Bxc6 {[%emt 0:06:17]} Qxc6 {[%emt 0:02:23]} 23. Ne3 {[%emt 0:08:19]} Ne6 {[%emt 0:04:34]} 24. Nf5 {[%emt 0:01:24]} Qb6 {[%emt 0:02:30]} 25. Re1 {[%emt 0:06:38]} Rxe1+ {[%emt 0:03:42]} 26. Qxe1 {[%emt 0:00:09]} Qxb2 {[%emt 0:01:06]} 27. h3 {[%emt 0:01:00]} Qc2 {[%emt 0:01:08]} 28. Rf3 {[%emt 0:02:01]} Qxa4 {[%emt 0:00:42]} 29. Qb1 {[%emt 0:00:57]} Nxd4 {[%emt 0:01:03]} 30. Nxd4 {[%emt 0:00:49]} Qxd4 {[%emt 0:00:30]} 31. Qxb7 {[%emt 0:00:19]} Qb6 {[%emt 0:00:29]} 32. Qxb6 {[%emt 0:00:50]} cxb6 {[%emt 0:00:32]} 33. Rb3 {[%emt 0:00:10]} d4 {[%emt 0:01:02]} 34. Kf1 {[%emt 0:00:34]} d3 {[%emt 0:00:47]} 35. Ke1 {[%emt 0:00:06]} d2+ {[%emt 0:00:31]} 36. Kd1 {[%emt 0:00:20]} Rd6 {[%emt 0:00:21]} 37. Rb5 {[%emt 0:00:33]} Kf8 {[%emt 0:00:32]} 38. Re5 {[%emt 0:00:19]} Re6 {[%emt 0:00:50]} 39. Rd5 {[%emt 0:00:23]} Ke7 {[%emt 0:00:23]} 40. Rb5 {[%emt 0:01:57]} Rd6 {[%emt 0:00:19]} 41. Re5+ {[%emt 0:15:27]} Kd7 {[%emt 0:15:20]} 42. Rf5 {[%emt 0:00:15]} f6 {[%emt 0:00:19]} 43. Rf3 {[%emt 0:00:53]} Rd5 {[%emt 0:01:16]} 44. Rb3 {[%emt 0:00:20]} b5 {[%emt 0:00:35]} 45. f3 {[%emt 0:00:46]} b4 {[%emt 0:01:27]} 46. Re3 {[%emt 0:00:23]} Rd4 {[%emt 0:00:24]} 47. Rb3 {[%emt 0:00:52]} a4 {[%emt 0:00:14]} 48. Rb1 {[%emt 0:00:52]} b3 {[%emt 0:00:43]} 49. h4 {[%emt 0:01:33]} Rd3 {[%emt 0:00:24]} 50. Ra1 {[%emt 0:00:32]} b2 {[%emt 0:00:23]} 0-1

[Event "GER-ch Youth U10 2020"]
[Site "Willingen"]
[Date "2020.10.28"]
[Round "2.24"]
[White "Allen, Phillipp"]
[Black "Rosenkranz, Lennard"]
[Result "0-1"]
[ECO "B85"]
[WhiteElo "1250"]
[BlackElo "1467"]
[Annotator "NA RC"]
[PlyCount "116"]
[EventDate "2020.10.27"]
[EventType "swiss"]
[EventRounds "7"]
[EventCountry "GER"]
[SourceTitle "playchess.com"]
[Source "ChessBase"]
[SourceQuality "1"]
[TimeControl "40/4500+30:900+30"]

1. e4 {[%emt 0:00:00]} c5 {[%emt 0:00:00]} 2. Nf3 {[%emt 0:00:00]} d6 {[%emt 0:00:00]} 3. d4 {[%emt 0:00:00]} cxd4 {[%emt 0:00:06]} 4. Nxd4 {[%emt 0:00:01]} a6 {[%emt 0:00:12]} 5. Nc3 {[%emt 0:00:15]} Nf6 {[%emt 0:00:11]} 6. Be2 {[%emt 0:00:51]} e6 {[%emt 0:00:28]} 7. O-O {[%emt 0:00:09]} Qc7 {[%emt 0:00:25]} 8. Be3 {[%emt 0:00:20]} b5 {[%emt 0:00:21]} 9. a3 {[%emt 0:00:38]} Bb7 {[%emt 0:00:12]} 10. Bf3 {[%emt 0:00:24]} Nbd7 {[%emt 0:00:30]} 11. g3 {[%emt 0:01:18]} Nb6 {[%emt 0:00:23]} 12. Re1 {[%emt 0:02:17]} Nfd7 {[%emt 0:01:51]} 13. Bg2 {[%emt 0:04:36]} Be7 {[%emt 0:00:35]} 14. f4 {[%emt 0:00:53]} Nc4 {[%emt 0:02:31]} 15. Bc1 {[%emt 0:03:03]} Rc8 {[%emt 0:02:39]} 16. Qh5 {[%emt 0:06:29]} Nf6 {[%emt 0:02:07]} 17. Qe2 {[%emt 0:04:56]} Qc5 {[%emt 0:06:53]} 18. Be3 {[%emt 0:00:23]} Nxe3 {[%emt 0:07:18]} 19. Qxe3 {[%emt 0:00:38]} Bd8 {[%emt 0:00:22]} 20. Nb3 {[%emt 0:00:22]} Qxe3+ {[%emt 0:00:28]} 21. Rxe3 {[%emt 0:00:23]} Bb6 {[%emt 0:00:07]} 22. Kf2 {[%emt 0:00:12]} Ng4+ {[%emt 0:00:32]} 23. Ke2 {[%emt 0:00:26]} Nxe3 {[%emt 0:00:29]} 24. Bf3 {[%emt 0:00:35]} O-O {[%emt 0:00:25]} 25. Kd2 {[%emt 0:00:21]} Nc4+ {[%emt 0:00:54]} 26. Kc1 {[%emt 0:00:07]} Be3+ {[%emt 0:00:57]} 27. Kb1 {[%emt 0:00:40]} Nd2+ {[%emt 0:01:05]} 28. Nxd2 {[%emt 0:00:18]} Bxd2 {[%emt 0:01:20]} 29. Ne2 {[%emt 0:00:26]} f5 {[%emt 0:00:42]} 30. Nd4 {[%emt 0:00:24]} Bxe4 {[%emt 0:00:57]} 31. Bxe4 {[%emt 0:00:27]} fxe4 {[%emt 0:00:12]} 32. Nxe6 {[%emt 0:00:12]} e3 {[%emt 0:01:25]} 33. Nd4 {[%emt 0:00:10]} Rfe8 {[%emt 0:00:11]} 34. Ne2 {[%emt 0:00:21]} Kf7 {[%emt 0:00:33]} 35. c3 {[%emt 0:00:06]} Kf6 {[%emt 0:00:21]} 36. Kc2 {[%emt 0:00:08]} Kf5 {[%emt 0:00:51]} 37. h3 {[%emt 0:01:05]} Ke4 {[%emt 0:00:18]} 38. Rf1 {[%emt 0:00:13]} a5 {[%emt 0:00:13]} 39. f5 {[%emt 0:00:35]} Ke5 {[%emt 0:00:50]} 40. g4 {[%emt 0:02:33]} Rf8 {[%emt 0:00:15]} 41. Kd3 {[%emt 0:16:07]} g6 {[%emt 0:15:46]} 42. Nd4 {[%emt 0:00:39]} Rce8 {[%emt 0:03:03]} 43. Nf3+ {[%emt 0:01:40]} Kd5 {[%emt 0:01:04]} 44. Nd4 {[%emt 0:00:51]} gxf5 {[%emt 0:00:54]} 45. gxf5 {[%emt 0:01:12]} Rg8 {[%emt 0:02:17]} 46. f6 {[%emt 0:00:40]} Rg3 {[%emt 0:00:18]} 47. Rf5+ {[%emt 0:00:08]} Re5 {[%emt 0:00:18]} 48. f7 {[%emt 0:00:54]} e2+ {[%emt 0:00:00]} 49. Kc2 {[%emt 0:01:33]} e1=Q {[%emt 0:00:20]} 50. Rxe5+ {[%emt 0:02:28]} Qxe5 {[%emt 0:00:15]} 51. f8=Q {[%emt 0:00:41]} Qe4+ {[%emt 0:00:13]} 52. Kb3 {[%emt 0:00:19]} a4+ {[%emt 0:00:44]} 53. Ka2 {[%emt 0:01:31]} Bxc3 {[%emt 0:02:16]} 54. Qa8+ {[%emt 0:00:44]} Kxd4 {[%emt 0:00:10]} 55. Qa7+ {[%emt 0:00:36]} Kd3 {[%emt 0:00:24]} 56. Qc7 {[%emt 0:01:06]} Qd5+ {[%emt 0:00:33]} 57. Qc4+ {[%emt 0:01:07]} Qxc4+ {[%emt 0:00:09]} 58. b3 {[%emt 0:00:04]} Qxb3# {[%emt 0:00:05]} 0-1

[Event "GER-ch Youth U10 2020"]
[Site "Willingen"]
[Date "2020.10.28"]
[Round "2.25"]
[White "Marcziter, Alex"]
[Black "Peters, Lasse"]
[Result "1-0"]
[ECO "C58"]
[WhiteElo "1401"]
[BlackElo "1223"]
[Annotator "NA RC"]
[PlyCount "111"]
[EventDate "2020.10.27"]
[EventType "swiss"]
[EventRounds "7"]
[EventCountry "GER"]
[SourceTitle "playchess.com"]
[Source "ChessBase"]
[SourceQuality "1"]
[TimeControl "40/4500+30:900+30"]

1. e4 {[%emt 0:00:00]} e5 {[%emt 0:00:00]} 2. Nf3 {[%emt 0:00:00]} Nc6 {[%emt 0:00:00]} 3. Bc4 {[%emt 0:00:12]} Nf6 {[%emt 0:00:36]} 4. Ng5 {[%emt 0:00:38]} d5 {[%emt 0:01:10]} 5. exd5 {[%emt 0:00:28]} Na5 {[%emt 0:00:08]} 6. Bb5+ {[%emt 0:00:25]} c6 {[%emt 0:00:24]} 7. dxc6 {[%emt 0:00:31]} bxc6 {[%emt 0:00:31]} 8. Be2 {[%emt 0:00:38]} Nd5 {[%emt 0:00:58]} 9. Ne4 {[%emt 0:02:15]} Bf5 {[%emt 0:00:21]} 10. d3 {[%emt 0:03:29]} Bxe4 {[%emt 0:01:00]} 11. dxe4 {[%emt 0:00:09]} Nf6 {[%emt 0:00:30]} 12. Qxd8+ {[%emt 0:02:54]} Rxd8 {[%emt 0:00:03]} 13. Bd3 {[%emt 0:00:09]} Be7 {[%emt 0:00:48]} 14. Be3 {[%emt 0:04:18]} c5 {[%emt 0:00:21]} 15. b3 {[%emt 0:00:56]} O-O {[%emt 0:00:36]} 16. Nd2 {[%emt 0:02:59]} Rd7 {[%emt 0:01:23]} 17. f3 {[%emt 0:03:14]} Rc8 {[%emt 0:01:12]} 18. Nc4 {[%emt 0:02:30]} Nxc4 {[%emt 0:00:21]} 19. Bxc4 {[%emt 0:00:17]} Rdd8 {[%emt 0:00:41]} 20. Ke2 {[%emt 0:03:08]} Nd7 {[%emt 0:00:28]} 21. Rhd1 {[%emt 0:03:33]} Nb6 {[%emt 0:00:25]} 22. Bb5 {[%emt 0:00:40]} Ra8 {[%emt 0:00:48]} 23. Ba6 {[%emt 0:00:58]} f6 {[%emt 0:03:43]} 24. Rd2 {[%emt 0:02:46]} Rxd2+ {[%emt 0:00:51]} 25. Kxd2 {[%emt 0:00:20]} Rd8+ {[%emt 0:00:25]} 26. Ke2 {[%emt 0:00:13]} Kf7 {[%emt 0:00:42]} 27. Rd1 {[%emt 0:00:52]} Bd6 {[%emt 0:02:13]} 28. Bxc5 {[%emt 0:01:24]} Ke6 {[%emt 0:00:50]} 29. Rxd6+ {[%emt 0:01:11]} Rxd6 {[%emt 0:00:55]} 30. Bxd6 {[%emt 0:00:05]} Kxd6 {[%emt 0:00:04]} 31. Kd3 {[%emt 0:01:08]} Kc5 {[%emt 0:00:11]} 32. c3 {[%emt 0:00:26]} Nd7 {[%emt 0:00:15]} 33. a4 {[%emt 0:00:39]} Kb6 {[%emt 0:00:09]} 34. Bb5 {[%emt 0:00:07]} Nc5+ {[%emt 0:00:23]} 35. Kc4 {[%emt 0:00:11]} a6 {[%emt 0:00:10]} 36. Be8 {[%emt 0:00:50]} g5 {[%emt 0:01:59]} 37. a5+ {[%emt 0:00:09]} Kc7 {[%emt 0:01:22]} 38. Kxc5 {[%emt 0:00:10]} Kd8 {[%emt 0:00:13]} 39. Bc6 {[%emt 0:00:10]} Ke7 {[%emt 0:00:09]} 40. b4 {[%emt 0:00:05]} Ke6 {[%emt 0:00:16]} 41. Bd5+ {[%emt 0:15:10]} Ke7 {[%emt 0:15:54]} 42. Kb6 {[%emt 0:00:06]} h5 {[%emt 0:00:30]} 43. Kxa6 {[%emt 0:00:09]} g4 {[%emt 0:01:08]} 44. b5 {[%emt 0:00:19]} gxf3 {[%emt 0:00:11]} 45. gxf3 {[%emt 0:00:06]} Kf8 {[%emt 0:00:45]} 46. b6 {[%emt 0:00:06]} Kg7 {[%emt 0:00:35]} 47. b7 {[%emt 0:00:05]} Kg6 {[%emt 0:00:21]} 48. b8=Q {[%emt 0:00:05]} Kg5 {[%emt 0:00:25]} 49. Qg8+ {[%emt 0:00:16]} Kf4 {[%emt 0:00:21]} 50. Qg3+ {[%emt 0:00:12]} Ke3 {[%emt 0:00:19]} 51. f4+ {[%emt 0:00:11]} Kd2 {[%emt 0:00:19]} 52. Bc4 {[%emt 0:00:10]} exf4 {[%emt 0:00:39]} 53. Qd3+ {[%emt 0:00:05]} Kc1 {[%emt 0:00:26]} 54. Bb3 {[%emt 0:00:11]} Kb2 {[%emt 0:00:32]} 55. Qc2+ {[%emt 0:00:05]} Ka3 {[%emt 0:00:22]} 56. Qa2# 1-0

[Event "GER-ch Youth U10 2020"]
[Site "Willingen"]
[Date "2020.10.28"]
[Round "2.27"]
[White "Ehrath, Hendrik"]
[Black "Gulamzada, Elmir"]
[Result "1-0"]
[ECO "C01"]
[WhiteElo "1193"]
[BlackElo "1397"]
[Annotator "NA RC"]
[PlyCount "85"]
[EventDate "2020.10.27"]
[EventType "swiss"]
[EventRounds "7"]
[EventCountry "GER"]
[SourceTitle "playchess.com"]
[Source "ChessBase"]
[SourceQuality "1"]
[TimeControl "40/4500+30:900+30"]

1. e4 {[%emt 0:00:00]} e6 {[%emt 0:00:00]} 2. d4 {[%emt 0:00:00]} d5 {[%emt 0:00:00]} 3. exd5 {[%emt 0:00:00]} exd5 {[%emt 0:00:00]} 4. Bd3 {[%emt 0:00:14]} Nc6 {[%emt 0:00:35]} 5. Nf3 {[%emt 0:00:09]} Bg4 {[%emt 0:00:37]} 6. h3 {[%emt 0:00:13]} Bxf3 {[%emt 0:04:21]} 7. Qxf3 {[%emt 0:00:43]} Nxd4 {[%emt 0:01:10]} 8. Qe3+ {[%emt 0:00:11]} Qe7 {[%emt 0:00:15]} 9. Qxe7+ {[%emt 0:00:14]} Bxe7 {[%emt 0:00:12]} 10. Be3 {[%emt 0:00:58]} Nc6 {[%emt 0:00:27]} 11. O-O Nf6 {[%emt 0:00:29]} 12. Bb5 {[%emt 0:01:11]} O-O {[%emt 0:00:45]} 13. Bg5 {[%emt 0:00:26]} Nd4 {[%emt 0:02:06]} 14. Bd3 {[%emt 0:01:03]} h6 {[%emt 0:00:36]} 15. Bh4 {[%emt 0:01:18]} Rfe8 {[%emt 0:04:24]} 16. c3 {[%emt 0:00:20]} Nc6 {[%emt 0:01:11]} 17. Re1 {[%emt 0:00:16]} Bc5 18. Nd2 {[%emt 0:00:50]} Rxe1+ {[%emt 0:05:58]} 19. Rxe1 {[%emt 0:00:09]} Re8 {[%emt 0:00:47]} 20. Rxe8+ {[%emt 0:00:18]} Nxe8 21. a4 {[%emt 0:01:09]} Nf6 {[%emt 0:02:57]} 22. Bxf6 {[%emt 0:00:17]} gxf6 {[%emt 0:00:13]} 23. b4 {[%emt 0:00:10]} Ne5 {[%emt 0:02:33]} 24. Bf5 {[%emt 0:00:53]} Bd6 {[%emt 0:00:28]} 25. Bc8 {[%emt 0:00:35]} b6 {[%emt 0:00:33]} 26. Bb7 {[%emt 0:00:24]} c6 {[%emt 0:01:25]} 27. Nf3 Nxf3+ 28. gxf3 {[%emt 0:02:07]} Be5 {[%emt 0:01:20]} 29. Bxc6 {[%emt 0:00:31]} Bxc3 {[%emt 0:00:23]} 30. Bxd5 {[%emt 0:00:23]} Bxb4 {[%emt 0:00:00]} 31. Kf1 {[%emt 0:00:35]} Bc5 32. f4 {[%emt 0:00:18]} f5 {[%emt 0:01:36]} 33. Ke2 {[%emt 0:00:40]} Bd6 {[%emt 0:00:48]} 34. Ke3 {[%emt 0:00:34]} Kg7 {[%emt 0:00:43]} 35. h4 {[%emt 0:00:42]} Kg6 {[%emt 0:01:17]} 36. Kf3 f6 {[%emt 0:03:07]} 37. Kg3 {[%emt 0:01:07]} a6 {[%emt 0:03:58]} 38. Bc4 {[%emt 0:00:00]} a5 {[%emt 0:00:19]} 39. Bd3 {[%emt 0:00:24]} Bc5 {[%emt 0:06:47]} 40. f3 {[%emt 0:00:22]} Bb4 {[%emt 0:02:02]} 41. Bb5 {[%emt 0:15:58]} Be1+ {[%emt 0:17:30]} 42. Kh3 {[%emt 0:00:09]} Kh5 {[%emt 0:01:30]} 43. Be8# {[%emt 0:00:20]} 1-0